bitfinex-derivatives/quotes_ETHF0:USTF0_20241207
["timestamp","ask_amount","ask_price","bid_price","bid_amount"]
[1733583803953,0.17506,3994.4,3994.0,1.38437]
[1733583804351,0.17507,3994.2,3994.0,1.2093]
[1733583805354,2.66089211,3994.5,3994.0,1.2093]
[1733583805555,2.66089211,3994.5,3994.0,1.38437]
[1733583805754,0.17506,3994.4,3994.0,1.38437]
[1733583805946,2.66089211,3994.5,3994.0,1.38437]
[1733583805947,0.17506,3994.3,3994.0,1.38437]
[1733583806353,2.66089211,3994.5,3994.0,1.2093]
[1733583807058,0.17506,3994.3,3994.0,1.38437]
[1733583807359,0.17506,3994.3,3994.1,0.17507]
[1733583807751,0.17506,3994.3,3994.0,1.38437]
[1733583807953,0.17506,3994.3,3994.1,0.17507]
[1733583808152,0.17506,3994.3,3994.0,1.2093]
[1733583808356,0.706,3994.2,3994.0,1.2093]
[1733583808560,0.17504,3994.7,3994.5,0.17505]
[1733583808757,0.17504,3994.7,3994.6,1.1765]
[1733583808758,0.88104,3994.7,3994.6,1.1765]
[1733583809155,0.706,3994.7,3994.6,1.1765]
[1733583809357,0.88104,3994.7,3994.6,1.35155]
[1733583809555,0.88104,3994.7,3994.6,1.1765]
[1733583809955,0.17504,3994.7,3994.6,1.1765]
[1733583810159,0.706,3994.7,3994.6,1.1765]
[1733583810658,0.88104,3994.7,3994.6,1.1765]
[1733583810858,0.88104,3994.7,3994.3,3.2078]
[1733583810859,0.17506,3994.4,3994.3,3.38286]
[1733583811260,0.17506,3994.5,3994.3,3.38286]
[1733583811468,0.4105,3994.6,3994.3,3.2078]
[1733583811871,0.58555,3994.6,3994.3,3.2078]
[1733583812179,0.17505,3994.6,3994.4,0.57935]
[1733583812371,0.88104,3994.7,3994.4,0.4043]
[1733583812586,0.88104,3994.7,3994.5,0.58165]
[1733583812876,0.17504,3994.7,3994.6,0.3792]
[1733583813175,0.88104,3994.7,3994.6,0.3792]
[1733583813572,0.706,3994.7,3994.6,0.3792]
[1733583813774,3.2078,3995.2,3994.7,0.17504]
[1733583813964,0.17503,3995.0,3994.7,0.17504]
[1733583814171,0.706,3995.1,3994.7,0.17504]
[1733583814498,0.17504,3994.8,3994.6,0.55425]
[1733583814968,0.706,3995.1,3994.6,0.55425]
[1733583814969,0.17504,3994.9,3994.6,0.55425]
[1733583815372,0.88104,3994.9,3994.6,0.55425]
[1733583816178,0.17504,3994.8,3994.6,0.3792]
[1733583816476,0.706,3994.9,3994.6,0.3792]
[1733583816672,0.17504,3994.7,3994.6,0.3792]
[1733583817774,0.17504,3994.8,3994.6,0.3792]
[1733583818275,0.17504,3994.8,3994.6,0.55425]
[1733583818489,0.88104,3994.9,3994.6,0.55425]
[1733583818777,0.17504,3994.8,3994.6,0.55425]
[1733583819376,0.706,3994.9,3994.6,0.3792]
[1733583819572,0.17504,3994.8,3994.6,0.55424]
[1733583820378,0.17504,3994.7,3994.6,0.3792]
[1733583821377,0.706,3994.9,3994.6,0.55425]
[1733583821577,0.17504,3994.8,3994.6,0.55425]
[1733583821975,0.706,3994.9,3994.6,0.3792]
[1733583822282,0.17504,3994.7,3994.6,0.55425]
[1733583822582,0.17504,3994.7,3994.6,0.3792]
[1733583822769,0.88104,3994.9,3994.7,0.17504]
[1733583822972,0.17504,3994.8,3994.7,0.17504]
[1733583823476,0.17504,3994.7,3994.6,0.55425]
[1733583823683,0.706,3994.9,3994.7,0.17504]
[1733583823684,0.17504,3994.8,3994.7,0.17504]
[1733583825281,0.17504,3994.7,3994.6,0.55424]
[1733583828278,0.88102,3995.3,3995.2,0.17502]
[1733583828478,0.17501,3995.5,3995.4,0.17501]
[1733583829474,2.94148475,3996.0,3995.4,4.1096988]
[1733583829779,4.31757967,3996.3,3995.7,0.9018988]
[1733583829780,0.706,3996.1,3995.7,0.9018988]
[1733583830085,0.706,3996.1,3996.0,0.17499]
[1733583830273,0.706,3996.1,3995.8,3.5954]
[1733583830274,0.88098,3996.1,3995.8,3.5954]
[1733583830472,0.88098,3996.1,3995.9,0.58589]
[1733583830986,0.88098,3996.1,3995.9,0.4109]
[1733583831182,0.706,3996.1,3995.8,3.2078]
[1733583831480,1.95358754,3996.0,3995.3,3.91327468]
[1733583831682,0.17501,3995.4,3995.3,0.4124]
[1733583832883,0.701,3995.5,3995.3,0.4124]
[1733583833083,0.87601,3995.5,3995.3,0.4124]
[1733583833378,0.701,3995.5,3995.3,0.4124]
[1733583834285,0.87601,3995.5,3995.3,0.4124]
[1733583834488,0.17501,3995.4,3995.3,0.4124]
[1733583835487,0.3791,3995.4,3994.7,3.2078]
[1733583835681,0.17503,3995.0,3994.7,3.2078]
[1733583836285,0.388,3995.3,3994.7,3.2078]
[1733583836484,0.17504,3994.9,3994.7,3.2078]
[1733583836687,0.701,3994.9,3994.7,3.2078]
[1733583837192,0.87604,3994.9,3994.7,3.2078]
[1733583837387,0.701,3994.9,3994.7,3.2078]
[1733583837587,0.17504,3994.8,3994.7,3.2078]
[1733583837788,0.58964,3994.8,3994.6,0.4041]
[1733583838295,0.17504,3994.7,3994.6,0.4041]
[1733583838978,0.17504,3994.7,3994.2,3.2078]
[1733583838979,0.17505,3994.6,3994.2,3.2078]
[1733583839788,0.4146,3994.8,3994.2,3.2078]
[1733583840090,0.17505,3994.5,3994.2,3.2078]
[1733583840290,0.4146,3994.8,3994.2,3.2078]
[1733583840490,0.17505,3994.6,3994.2,3.2078]
[1733583840689,0.17504,3994.7,3994.2,3.38286]
[1733583840889,0.17504,3994.7,3994.3,0.17506]
[1733583841191,0.58964,3994.8,3994.3,0.17506]
[1733583841385,0.17504,3994.7,3994.3,0.17506]
[1733583841692,0.17505,3994.6,3994.2,3.2078]
[1733583842091,0.4146,3994.8,3994.2,3.2078]
[1733583842290,0.17505,3994.7,3994.2,3.38286]
[1733583842490,0.17505,3994.6,3994.2,3.2078]
[1733583842791,0.17505,3994.5,3994.2,3.2078]
[1733583843985,0.17506,3994.3,3994.2,3.2078]
[1733583844187,0.87606,3994.3,3994.2,3.2078]
[1733583844984,0.17507,3994.1,3994.0,0.7823]
[1733583846092,0.3758,3994.2,3993.8,3.2078]
[1733583846093,0.17508,3993.9,3993.8,3.2078]
[1733583847696,1.95358754,3994.0,3993.4,0.4061]
[1733583847890,0.1751,3993.5,3993.4,0.4061]
[1733583848091,0.701,3993.7,3993.5,0.1751]
[1733583848299,0.87609,3993.7,3993.4,0.4061]
[1733583848498,0.87609,3993.7,3993.4,0.5812]
[1733583849103,0.87609,3993.7,3993.4,0.4061]
[1733583849291,0.17509,3993.6,3993.4,0.4061]
[1733583849494,0.87609,3993.7,3993.4,0.5812]
[1733583849695,0.701,3993.7,3993.4,0.5812]
[1733583849896,0.701,3993.7,3993.4,0.4061]
[1733583849897,0.17509,3993.6,3993.4,0.4061]
[1733583850201,0.701,3993.7,3993.4,0.4061]
[1733583850604,0.701,3993.7,3993.4,0.5812]
[1733583850795,0.17509,3993.6,3993.4,0.5812]
[1733583851104,0.87609,3993.7,3993.5,0.1751]
[1733583851305,0.701,3993.7,3993.5,0.1751]
[1733583851598,0.17509,3993.6,3993.5,0.1751]
[1733583852097,0.701,3993.7,3993.4,0.4061]
[1733583852298,0.701,3993.7,3993.6,0.17509]
[1733583852806,0.87609,3993.7,3993.6,0.17509]
[1733583853403,0.17509,3993.6,3993.5,0.17509]
[1733583853899,0.17509,3993.6,3993.4,0.4061]
[1733583853900,0.701,3993.7,3993.4,0.4061]
[1733583854107,0.1751,3993.5,3993.4,0.5812]
[1733583854604,0.701,3993.7,3993.4,0.5812]
[1733583854605,0.701,3993.7,3993.4,0.4061]
[1733583854994,0.1751,3993.6,3993.5,0.17509]
[1733583855199,0.1751,3993.5,3993.4,0.5812]
[1733583859005,0.1751,3993.5,3993.4,0.4061]
[1733583861413,0.87609,3993.7,3993.4,0.4061]
[1733583861718,0.87609,3993.7,3993.5,0.17509]
[1733583861916,0.87609,3993.7,3993.4,0.4061]
[1733583861917,0.701,3993.7,3993.4,0.4061]
[1733583862513,0.689,3994.0,3993.6,3.2078]
[1733583862714,0.689,3994.0,3993.8,0.17508]
[1733583862715,0.17507,3994.0,3993.8,0.17508]
[1733583862911,3.8968,3994.4,3994.2,0.17506]
[1733583863209,0.689,3994.5,3994.4,0.17505]
[1733583863712,0.17506,3994.4,3994.3,0.7979]
[1733583864812,0.86406,3994.4,3994.3,0.7979]
[1733583867718,0.689,3994.4,3994.3,0.7979]
[1733583869414,0.17505,3994.6,3994.3,0.97296]
[1733583869615,0.86405,3994.5,3994.3,0.7979]
[1733583869917,0.689,3994.5,3994.3,0.97296]
[1733583870115,0.3801,3995.0,3994.3,0.7979]
[1733583870312,0.689,3994.9,3994.6,3.2078]
[1733583870517,0.689,3994.9,3994.7,0.3943]
[1733583870810,0.86404,3994.9,3994.7,0.3943]
[1733583871010,0.86404,3994.9,3994.8,0.3946]
[1733583872012,0.689,3994.9,3994.8,0.3946]
[1733583872218,0.689,3994.9,3994.8,0.56964]
[1733583873708,0.3817,3995.7,3994.8,0.3946]
[1733583873910,0.17501,3995.5,3995.4,0.17501]
[1733583874525,0.689,3995.6,3995.3,0.3931]
[1733583874820,0.689,3995.6,3995.4,0.57651]
[1733583875117,0.86401,3995.6,3995.4,0.57651]
[1733583875528,0.689,3995.6,3995.4,0.4015]
[1733583876016,0.17501,3995.5,3995.4,0.4015]
[1733583876221,0.17498,3996.2,3995.9,0.17499]
[1733583876422,0.4012,3996.3,3995.9,3.2078]
[1733583876624,0.688,3996.4,3995.9,3.2078]
[1733583876625,0.17497,3996.4,3996.1,0.17498]
[1733583876823,0.688,3996.4,3996.1,0.17498]
[1733583877021,3.609,3996.7,3996.2,0.404]
[1733583877216,0.17496,3996.5,3996.2,0.57898]
[1733583877420,0.688,3996.6,3996.2,0.404]
[1733583877621,0.17497,3996.5,3996.3,0.17497]
[1733583877825,0.86296,3996.6,3996.3,0.17497]
[1733583878327,0.86296,3996.6,3996.2,0.404]
[1733583878519,0.86296,3996.6,3996.3,0.17497]
[1733583878929,0.688,3996.6,3996.3,0.17497]
[1733583879330,0.688,3996.6,3996.2,0.404]
[1733583879628,0.688,3996.6,3996.5,0.17496]
[1733583879830,0.4002,3997.0,3996.2,0.404]
[1733583880132,0.688,3996.9,3996.7,0.17495]
[1733583880522,0.688,3996.9,3996.3,3.2078]
[1733583880523,0.86295,3996.9,3996.3,3.2078]
[1733583880724,0.86295,3996.9,3996.6,0.17496]
[1733583880924,0.688,3996.9,3996.3,3.2078]
[1733583881134,0.17495,3996.8,3996.5,0.17496]
[1733583882722,0.688,3996.9,3996.3,3.2078]
[1733583883133,0.17497,3996.4,3996.3,3.2078]
[1733583883428,0.17497,3996.5,3996.3,3.2078]
[1733583883635,0.86295,3996.9,3996.5,0.17496]
[1733583884129,0.86295,3996.9,3996.3,3.2078]
[1733583884130,0.688,3996.9,3996.8,0.17495]
[1733583884323,0.688,3996.9,3996.7,0.17496]
[1733583884527,0.688,3997.0,3996.8,0.58115]
[1733583884826,3.2078,3997.5,3996.9,0.4056]
[1733583885033,0.688,3997.2,3996.9,0.4056]
[1733583885221,0.57953,3997.4,3997.0,0.17494]
[1733583885525,0.57953,3997.4,3996.9,0.4056]
[1733583885526,0.688,3997.3,3996.9,0.4056]
[1733583885727,0.688,3997.2,3996.9,0.4056]
[1733583885928,0.17494,3997.0,3996.9,0.4056]
[1733583886134,0.17494,3997.0,3996.0,0.43747]
[1733583886135,3.2078,3997.1,3996.0,3.2078]
[1733583886326,0.17496,3996.6,3996.2,0.17498]
[1733583886527,0.688,3997.0,3996.4,5.16138754]
[1733583886728,0.688,3997.0,3996.8,0.17495]
[1733583886933,0.688,3997.0,3996.9,0.816]
[1733583887427,3.2078,3997.5,3996.9,0.816]
[1733583887631,3.2078,3997.5,3997.0,0.3911]
[1733583887831,0.17493,3997.4,3997.0,0.56604]
[1733583888428,0.17493,3997.4,3997.1,0.17494]
[1733583888633,0.17492,3997.4,3997.0,0.56604]
[1733583888932,0.17492,3997.4,3997.0,0.3911]
[1733583889135,3.2078,3997.5,3997.0,0.3911]
[1733583889530,0.17494,3997.1,3997.0,0.3911]
[1733583889835,3.2078,3997.5,3996.9,0.816]
[1733583890035,0.17494,3997.0,3996.9,0.816]
[1733583890923,0.86294,3997.0,3996.9,0.4056]
[1733583891728,0.86294,3997.0,3996.6,0.54986]
[1733583891729,0.17496,3996.7,3996.6,0.3749]
[1733583892363,0.688,3997.0,3996.6,0.3749]
[1733583892547,0.17496,3996.7,3996.6,0.3749]
[1733583893349,0.688,3997.0,3996.6,0.3749]
[1733583893350,0.17495,3996.8,3996.6,0.3749]
[1733583893547,0.17496,3996.7,3996.6,0.3749]
[1733583893839,0.688,3997.0,3996.6,0.3749]
[1733583894138,0.683,3997.0,3996.6,0.3749]
[1733583894439,0.683,3997.0,3996.7,0.17496]
[1733583894633,0.683,3997.0,3996.8,0.4059]
[1733583894939,0.17495,3996.9,3996.8,0.4059]
[1733583895126,0.85795,3997.0,3996.8,0.4059]
[1733583895332,0.17495,3997.0,3996.8,0.4059]
[1733583895526,0.17496,3996.7,3996.6,0.3749]
[1733583901743,0.683,3997.1,3996.6,0.54986]
[1733583901744,0.17495,3996.9,3996.6,0.54986]
[1733583902051,0.683,3997.1,3996.6,0.3749]
[1733583902239,0.17495,3996.8,3996.6,0.3749]
[1733583902439,0.683,3997.1,3996.6,0.3749]
[1733583902645,0.17496,3996.7,3996.6,0.3749]
[1733583904441,0.683,3997.1,3996.6,0.3749]
[1733583904642,0.683,3997.1,3996.6,0.54986]
[1733583904941,0.17495,3996.9,3996.7,0.17496]
[1733583905335,0.683,3997.1,3996.6,0.3749]
[1733583905545,0.17494,3997.0,3996.8,0.17495]
[1733583905744,3.2078,3997.5,3996.9,0.4114]
[1733583905745,0.683,3997.2,3996.9,0.4114]
[1733583905940,0.85794,3997.2,3997.0,0.17494]
[1733583906144,0.17494,3997.1,3997.0,0.17494]
[1733583906641,0.683,3997.3,3996.9,0.4114]
[1733583906849,3.38272,3997.5,3997.2,0.17493]
[1733583907145,3.38272,3997.5,3997.3,0.3884]
[1733583907537,0.17492,3997.5,3997.3,0.3884]
[1733583907739,0.4047,3997.8,3997.3,0.3884]
[1733583907948,0.17492,3997.4,3997.3,0.3884]
[1733583909946,0.683,3997.6,3997.3,0.3884]
[1733583910142,0.17492,3997.5,3997.3,0.56333]
[1733583910343,0.17492,3997.5,3997.3,0.3884]
[1733583910545,0.17492,3997.5,3997.3,0.56333]
[1733583911045,0.85792,3997.6,3997.3,0.56333]
[1733583911351,0.17492,3997.5,3997.3,0.56333]
[1733583911650,0.1749,3998.1,3997.8,0.17491]
[1733583911843,0.1749,3998.0,3997.8,0.17491]
[1733583912154,0.1749,3998.0,3997.9,0.3979]
[1733583912449,0.683,3998.3,3997.9,0.3979]
[1733583912653,0.1749,3998.1,3998.0,0.3841]
[1733583912951,0.17489,3998.2,3998.1,0.17489]
[1733583913152,0.17489,3998.2,3998.0,0.3841]
[1733583913153,0.8017,3998.7,3998.0,0.3841]
[1733583913346,0.683,3998.6,3998.2,0.17489]
[1733583913544,0.17489,3998.3,3998.1,0.17489]
[1733583913846,0.17489,3998.3,3998.1,3.2078]
[1733583914151,0.17489,3998.3,3998.1,3.38269]
[1733583914361,0.17489,3998.2,3998.1,3.38269]
[1733583914653,0.17488,3998.4,3998.2,0.17489]
[1733583914953,0.17489,3998.2,3998.1,3.2078]
[1733583915152,0.17488,3998.5,3998.3,0.17489]
[1733583915448,34.71015092,3999.9,3998.1,3.2078]
[1733583915449,3.2078,3999.2,3998.1,3.2078]
[1733583915647,0.683,3998.8,3998.1,3.2078]
[1733583915951,0.17487,3998.7,3998.5,0.17488]
[1733583916148,0.17487,3998.7,3998.6,0.4129]
[1733583919371,0.85787,3998.7,3998.6,0.4129]
[1733583920575,0.683,3998.7,3998.2,0.3841]
[1733583920775,0.683,3998.7,3998.3,0.3862]
[1733583920776,0.17488,3998.4,3998.3,0.3862]
[1733583921072,0.17488,3998.5,3998.3,0.3862]
[1733583921662,0.683,3998.7,3998.3,0.3862]
[1733583921863,0.17488,3998.5,3998.3,0.3862]
[1733583922172,0.17488,3998.4,3998.3,0.3862]
[1733583922645,0.17489,3998.2,3998.1,3.2078]
[1733583923651,0.17489,3998.3,3998.1,3.2078]
[1733583924061,0.3926,3998.4,3998.1,3.38269]
[1733583924358,0.56748,3998.4,3998.2,0.17489]
[1733583924558,0.17488,3998.4,3998.1,3.38269]
[1733583924791,0.17489,3998.3,3998.1,3.38269]
[1733583925258,0.17488,3998.4,3998.1,3.38269]
[1733583925462,0.17488,3998.4,3998.2,0.17489]
[1733583925760,0.17488,3998.4,3998.3,0.3946]
[1733583926953,0.17487,3998.7,3998.5,0.17487]
[1733583927152,0.85487,3998.8,3998.6,0.17487]
[1733583927348,0.85487,3998.8,3998.7,0.3978]
[1733583927562,0.85487,3998.8,3998.7,0.7805]
[1733583927856,0.68,3998.8,3998.7,0.7805]
[1733583928069,0.68,3999.1,3998.7,0.7805]
[1733583928357,0.17486,3999.0,3998.8,0.17486]
[1733583928570,0.17486,3999.0,3998.9,0.3762]
[1733583928865,0.17485,3999.1,3998.9,0.55106]
[1733583929056,0.17485,3999.0,3998.9,0.3762]
[1733583929755,0.17485,3999.0,3998.9,3.75886]
[1733583930158,0.17485,3999.0,3998.9,3.584]
[1733583930667,0.17485,3999.0,3998.9,3.75886]
[1733583931165,0.17485,3999.0,3998.9,3.584]
[1733583933360,0.17485,3999.0,3998.9,3.75886]
[1733583933962,0.17485,3999.0,3998.9,3.584]
[1733583934360,0.17485,3999.0,3998.9,3.75886]
[1733583934766,0.17485,3999.0,3998.9,3.584]
[1733583935361,0.17485,3999.0,3998.9,3.75886]
[1733583935967,0.68,3999.2,3998.9,3.584]
[1733583936169,0.85485,3999.2,3999.0,0.17485]
[1733583936366,0.17485,3999.1,3999.0,0.17485]
[1733583936578,0.17485,3999.0,3998.9,3.584]
[1733583936763,3.6039,3999.6,3999.1,0.17485]
[1733583937070,0.17484,3999.4,3999.2,0.17484]
[1733583937270,0.17484,3999.4,3998.9,3.584]
[1733583937271,0.68,3999.5,3998.9,3.584]
[1733583937462,0.17484,3999.4,3999.1,0.17485]
[1733583937659,0.17484,3999.3,3999.1,0.17485]
[1733583938172,0.68,3999.5,3999.1,0.17485]
[1733583938371,0.17484,3999.3,3999.1,0.17485]
[1733583938574,0.386,3999.8,3998.9,3.584]
[1733583938769,0.17483,3999.7,3999.4,0.17484]
[1733583938971,0.17482,3999.8,3999.6,0.17483]
[1733583939267,0.68,4000.0,3999.7,0.3766]
[1733583939470,0.17482,3999.9,3999.7,0.55142]
[1733583939768,3.2078,4000.4,3999.8,3.2078]
[1733583940068,0.17481,4000.0,3999.8,3.38262]
[1733583940270,0.68,4000.1,3999.8,3.2078]
[1733583940475,0.85481,4000.1,3999.9,0.17481]
[1733583941478,0.17482,4000.0,3999.8,3.38262]
[1733583941676,0.85481,4000.1,3999.9,0.17482]
[1733583941972,0.17481,4000.0,3999.9,0.17482]
[1733583943174,0.17479,4000.5,3999.8,3.2078]
[1733583943382,0.70307,4000.7,4000.1,1.95358754]
[1733583943580,0.1748,4000.3,4000.2,0.8246]
[1733583944081,0.1748,4000.4,4000.2,0.9994]
[1733583944373,0.02307,4000.7,4000.2,0.8246]
[1733583944577,0.70307,4000.7,4000.2,0.8246]
[1733583944876,0.17479,4000.5,4000.2,0.9994]
[1733583945970,0.17479,4000.6,4000.3,0.1748]
[1733583946170,0.17479,4000.5,4000.4,0.3905]
[1733583946371,0.68,4000.8,4000.4,0.3905]
[1733583946588,3.2078,4000.9,4000.7,0.17478]
[1733583946779,3.2078,4000.9,4000.5,1.95358754]
[1733583946780,3.2078,4000.9,4000.8,0.17478]
[1733583947875,3.2078,4000.9,4000.7,0.17478]
[1733583948075,3.2078,4000.9,4000.5,1.95358754]
[1733583948282,0.17478,4000.8,4000.6,0.17478]
[1733583948573,0.17477,4000.9,4000.7,3.2078]
[1733583949080,0.17477,4000.9,4000.8,0.4019]
[1733583950879,0.17477,4001.0,4000.8,0.4019]
[1733583951178,0.17477,4001.0,4000.9,0.383]
[1733583953373,0.17478,4000.8,4000.7,3.2078]
[1733583957081,0.86378,4000.8,4000.7,3.2078]
[1733583957383,0.1748,4000.3,4000.2,0.4053]
[1733583957676,0.17482,3999.9,3999.8,0.8071]
[1733583957870,0.17482,3999.7,3999.6,0.4053]
[1733583958076,0.43704,4000.0,3999.3,1.95358754]
[1733583958274,0.17484,3999.4,3999.3,1.95358754]
[1733583958677,0.17484,3999.3,3999.2,0.4053]
[1733583958870,0.3814,4000.0,3999.2,0.4053]
[1733583958871,0.17484,3999.4,3999.2,0.4053]
[1733583959074,0.3814,4000.0,3999.2,0.58015]
[1733583959270,0.17484,3999.4,3999.2,0.4053]
[1733583959484,0.3814,4000.0,3999.2,0.4053]
[1733583959883,0.3814,4000.0,3999.2,0.58014]
[1733583960081,0.17483,3999.5,3999.2,0.58014]
[1733583960276,0.17484,3999.4,3999.2,0.4053]
[1733583960782,0.17484,3999.3,3999.2,0.4053]
[1733583961486,0.43702,4000.1,3999.2,0.4053]
[1733583961487,0.689,4000.2,3999.9,0.17481]
[1733583961783,1.078,4000.8,4000.4,0.17479]
[1733583962082,0.689,4000.8,4000.1,3.2078]
[1733583962275,0.86378,4000.8,4000.3,0.1748]
[1733583962476,0.17479,4000.6,4000.2,0.1748]
[1733583963085,0.689,4000.8,4000.1,3.3826]
[1733583963274,0.1748,4000.4,4000.1,3.2078]
[1733583964783,0.689,4000.8,4000.1,3.38261]
[1733583964989,0.17479,4000.5,4000.1,3.38261]
[1733583965687,0.689,4000.8,4000.1,3.2078]
[1733583965886,0.17479,4000.5,4000.1,3.3826]
[1733583966382,0.17478,4000.7,4000.3,0.1748]
[1733583966981,0.689,4000.8,4000.3,0.1748]
[1733583967184,0.17478,4000.7,4000.3,0.1748]
[1733583967486,0.689,4000.8,4000.3,0.1748]
[1733583967711,0.17479,4000.5,4000.2,0.589]
[1733583968183,0.17479,4000.6,4000.2,0.589]
[1733583968575,0.4071,4001.0,4000.2,0.589]
[1733583968576,0.4071,4001.0,4000.3,1.95358754]
[1733583968780,0.389,4001.2,4000.2,0.4142]
[1733583968781,0.389,4001.2,4001.0,0.17477]
[1733583969283,1.078,4001.2,4001.0,0.17477]
[1733583969481,1.078,4001.2,4001.0,3.38257]
[1733583969781,1.078,4001.2,4001.0,3.2078]
[1733583969980,0.689,4001.2,4001.1,0.17476]
[1733583971575,0.3849,4001.5,4001.4,0.17475]
[1733583971987,0.689,4001.5,4001.4,0.17475]
[1733583973984,0.689,4001.5,4001.3,0.17475]
[1733583974186,0.689,4001.5,4001.0,3.2078]
[1733583974404,0.689,4001.5,4001.4,0.17475]
[1733583976385,0.3783,4001.8,4001.0,3.2078]
[1733583976595,0.86374,4001.7,4001.4,0.17475]
[1733583976990,0.86374,4001.7,4001.5,0.17475]
[1733583977192,0.689,4001.7,4001.5,0.17475]
[1733583977591,0.86374,4001.7,4001.4,0.17475]
[1733583977809,0.689,4001.7,4001.5,0.17474]
[1733583977998,0.86374,4001.7,4001.5,0.17474]
[1733583978596,0.689,4001.7,4001.5,0.17474]
[1733583978892,0.55304,4001.8,4001.5,0.17474]
[1733583979099,0.689,4001.7,4001.5,0.17474]
[1733583979689,0.689,4001.7,4001.0,3.2078]
[1733583979892,0.86374,4001.7,4001.5,0.17474]
[1733583980197,0.689,4001.7,4001.6,0.17474]
[1733583981297,0.679,4001.7,4001.0,5.59830754]
[1733583981499,0.679,4001.7,4001.6,0.17474]
[1733583981997,0.3988,4002.2,4002.1,0.17472]
[1733583982199,0.4014,4002.3,4002.1,0.17472]
[1733583982401,0.679,4002.2,4002.1,0.17472]
[1733583982698,0.3862,4002.5,4002.0,3.2078]
[1733583982908,0.679,4002.4,4002.2,0.17471]
[1733583983206,0.3883,4002.8,4002.3,0.17471]
[1733583983207,0.679,4002.6,4002.3,0.17471]
[1733583983502,0.8537,4002.6,4002.4,0.3778]
[1733583983907,0.1747,4002.6,4002.4,0.3778]
[1733583984108,0.7745,4002.8,4002.4,0.55251]
[1733583984109,0.679,4002.5,4002.4,0.55251]
[1733583984299,2.93373548,4003.3,4002.4,0.3778]
[1733583984502,0.3862,4003.5,4003.1,2.12825754]
[1733583984702,0.3862,4003.5,4003.2,3.2078]
[1733583984703,1.0652,4003.5,4003.2,3.2078]
[1733583984995,1.0652,4003.5,4003.2,3.5884]
[1733583985301,0.06615,4003.6,4003.2,3.9662]
[1733583985509,0.74515,4003.6,4003.2,3.9662]
[1733583987103,0.91981,4003.6,4003.2,3.9662]
[1733583987608,0.74515,4003.6,4003.2,4.14087]
[1733583987793,0.91981,4003.6,4003.2,3.9662]
[1733583988303,0.24081,4003.6,4003.2,3.9662]
[1733583989509,0.17467,4003.4,4003.2,3.9662]
[1733583990205,0.06615,4003.6,4003.2,3.9662]
[1733583990401,0.17467,4003.3,4003.2,3.9662]
[1733583990606,0.17467,4003.3,4003.2,3.2078]
[1733583990803,0.06615,4003.6,4002.6,0.3846]
[1733583991201,0.1747,4002.5,4002.4,3.2078]
[1733583991503,0.8537,4002.5,4002.4,3.2078]
[1733583991703,0.679,4002.5,4002.4,3.2078]
[1733583991910,0.8537,4002.5,4002.4,3.2078]
[1733583992111,0.8537,4002.5,4002.1,0.3825]
[1733583992309,0.17471,4002.4,4002.1,0.3825]
[1733583992702,0.85371,4002.5,4002.1,0.3825]
[1733583993304,0.679,4002.5,4002.1,0.3825]
[1733583993505,0.17472,4002.2,4002.1,0.3825]
[1733583993700,0.679,4002.5,4002.1,0.3825]
[1733583993906,0.17472,4002.2,4002.1,0.3825]
[1733583994214,0.679,4002.5,4001.9,3.2078]
[1733583994415,0.17472,4002.2,4001.9,3.2078]
[1733583994711,0.679,4002.5,4001.9,3.2078]
[1733583994712,0.17471,4002.4,4001.9,3.2078]
[1733583994907,0.679,4002.5,4001.9,3.2078]
[1733583995108,0.17472,4002.0,4001.9,3.2078]
[1733583995503,0.17472,4002.0,4001.2,0.17476]
[1733583995504,0.17475,4001.3,4001.2,3.2078]
[1733583995813,0.679,4001.6,4001.0,3.2078]
[1733583996006,0.17476,4001.2,4001.0,3.2078]
[1733583996209,0.17476,4001.3,4001.0,3.2078]
[1733583996717,0.679,4001.4,4001.0,3.38257]
[1733583997208,0.679,4001.4,4001.0,3.2078]
[1733583997611,0.17474,4001.6,4001.1,0.17476]
[1733583997907,0.679,4001.5,4001.1,0.17476]
[1733583998111,0.679,4001.5,4001.2,0.17476]
[1733583999004,2.93373548,4002.8,4001.7,0.17473]
[1733583999005,0.679,4001.8,4001.7,0.17473]
[1733583999209,0.679,4002.1,4001.7,3.2078]
[1733583999516,0.679,4002.1,4001.8,1.1912]
[1733584000014,0.679,4002.1,4001.9,0.17473]
[1733584000206,0.679,4002.1,4001.8,1.1912]
[1733584000406,0.85371,4002.4,4002.0,0.17472]
[1733584000810,0.85371,4002.4,4002.2,3.2078]
[1733584001605,0.679,4002.4,4002.2,3.2078]
[1733584001814,0.85371,4002.4,4002.2,3.2078]
[1733584003319,0.17471,4002.3,4002.2,3.2078]
[1733584003818,0.679,4002.4,4002.2,3.2078]
[1733584004018,0.85371,4002.4,4002.2,3.2078]
[1733584004210,0.17471,4002.4,4002.2,3.2078]
[1733584004411,0.85371,4002.4,4002.2,3.2078]
[1733584004612,3.2078,4002.8,4002.2,3.2078]
[1733584004912,3.2078,4002.8,4002.5,0.1747]
[1733584005309,3.2078,4002.8,4002.6,0.4046]